bitfinex-derivatives/quotes_ETHF0:USTF0_20250727
["timestamp","ask_amount","ask_price","bid_price","bid_amount"]
[1753655809602,2.23093,3860.4,3860.3,0.99464]
[1753655809803,2.23093,3860.4,3860.3,1.11154]
[1753655810005,1.713,3860.4,3860.3,1.11154]
[1753655811308,2.23093,3860.4,3860.3,1.11154]
[1753655812110,1.713,3860.4,3860.3,1.11154]
[1753655812311,1.4243,3860.4,3860.3,1.11154]
[1753655813207,2.16620163,3860.4,3860.3,1.11154]
[1753655814912,2.45490163,3860.4,3860.3,1.11154]
[1753655816115,2.23095,3860.2,3860.1,0.4767]
[1753655816409,1.96015163,3860.2,3860.1,0.51797]
[1753655816606,1.44220163,3860.2,3860.1,0.51797]
[1753655816808,1.44220163,3860.2,3860.1,0.99467]
[1753655817008,2.45490163,3860.2,3860.1,0.99467]
[1753655817713,2.97285163,3860.2,3860.1,0.99467]
[1753655817912,2.45490163,3860.2,3860.1,0.99467]
[1753655818210,2.45490163,3860.2,3860.1,1.11157]
[1753655818407,1.03240163,3860.2,3860.1,1.11157]
[1753655818714,1.03240163,3860.2,3860.1,1.18467]
[1753655819302,1.03240163,3860.2,3860.1,1.11157]
[1753655819503,1.22030163,3860.2,3860.1,1.11157]
[1753655819803,1.52460163,3860.2,3860.1,1.11157]
[1753655820017,1.52460163,3860.2,3860.1,4.31937]
[1753655820313,1.95090163,3860.2,3860.1,4.31937]
[1753655820703,2.43430163,3860.2,3860.1,4.31937]
[1753655821010,2.95225163,3860.2,3860.1,0.51797]
[1753655821513,1.0976,3859.4,3858.9,0.3099]
[1753655821712,1.706,3859.0,3858.9,1.73902]
[1753655822009,0.3041,3859.7,3859.6,1.02373]
[1753655822210,0.4922,3860.1,3860.0,1.22158]
[1753655822408,1.5408926,3860.1,3860.0,5.88899093]
[1753655822707,2.4505926,3860.1,3860.0,4.63788]
[1753655822912,2.4505926,3860.1,3860.0,4.43048]
[1753655824212,2.4505926,3860.1,3860.0,4.94668]
[1753655824414,2.1607926,3860.1,3860.0,4.94668]
[1753655824712,2.4505926,3860.1,3860.0,4.63788]
[1753655826011,2.4505926,3860.1,3860.0,4.94668]
[1753655827213,1.706,3860.1,3860.0,4.94668]
[1753655827912,0.3041,3860.1,3860.0,5.88899093]
[1753655828216,1.42342511,3860.4,3860.3,2.04534]
[1753655828415,2.16651271,3860.4,3860.3,2.04534]
[1753655829109,2.45631271,3860.4,3860.3,2.04534]
[1753655829714,2.45631271,3860.4,3860.3,1.73884]
[1753655829913,2.45631271,3860.4,3860.3,2.04534]
[1753655831015,2.45631271,3860.4,3860.3,1.22264]
[1753655831818,2.45631271,3860.4,3860.3,1.43004]
[1753655832017,2.45631271,3860.4,3860.3,1.73884]
[1753655832620,2.45631271,3860.4,3860.3,2.04534]
[1753655833113,1.71322511,3860.4,3860.3,2.04534]
[1753655833320,1.71322511,3860.4,3860.3,1.73884]
[1753655834314,1.71322511,3860.4,3860.3,0.51794]
[1753655834912,1.71322511,3860.4,3860.3,0.82784]
[1753655835816,1.71322511,3860.4,3860.3,1.02474]
[1753655836816,1.22982511,3860.4,3860.3,2.04524]
[1753655837918,0.00722511,3860.4,3860.3,2.04524]
[1753655838715,0.7963,3861.1,3861.0,1.22145]
[1753655838908,1.2226,3861.1,3861.0,5.24575]
[1753655839110,1.706,3861.1,3861.0,5.24575]
[1753655839310,0.8143,3861.3,3861.2,2.03792]
[1753655839821,0.51,3861.3,3861.2,2.03792]
[1753655840019,0.018,3861.3,3861.2,2.03792]
[1753655840316,1.4342,3861.3,3861.2,0.51782]
[1753655840521,0.6858,3861.1,3861.0,3.2078]
[1753655840727,1.706,3861.1,3861.0,3.72565]
[1753655841022,2.22383,3861.1,3861.0,3.72565]
[1753655841223,1.706,3861.1,3861.0,3.2078]
[1753655841615,1.706,3861.1,3861.0,3.72565]
[1753655841811,1.706,3861.1,3861.0,4.12045]
[1753655842014,1.706,3861.1,3861.0,3.9125]
[1753655842223,1.706,3861.1,3861.0,4.23245]
[1753655842618,1.706,3861.1,3861.0,4.93925]
[1753655843827,1.706,3861.1,3861.0,3.9125]
[1753655844125,2.22383,3861.1,3861.0,1.22255]
[1753655844624,1.706,3861.1,3861.0,1.22255]
[1753655845230,2.22383,3861.1,3861.0,1.22255]
[1753655845726,1.706,3861.1,3861.0,1.22255]
[1753655846227,0.6858,3861.1,3860.5,3.2078]
[1753655846423,0.6858,3860.8,3860.7,1.02469]
[1753655846623,1.706,3860.8,3860.7,1.02469]
[1753655846824,1.706,3860.8,3860.7,1.73149]
[1753655847025,0.7963,3860.8,3860.7,2.03799]
[1753655848226,1.2381,3860.8,3860.7,2.03799]
[1753655848732,1.4262,3860.8,3860.7,2.03799]
[1753655849129,1.2381,3860.8,3860.7,2.03799]
[1753655849428,0.7963,3860.8,3860.7,2.03799]
[1753655849626,1.2206,3861.1,3861.0,1.22265]
[1753655849820,1.2206,3861.1,3861.0,1.72475]
[1753655850023,1.2206,3861.1,3861.0,2.01655]
[1753655850326,1.2206,3861.1,3861.0,5.22435]
[1753655850732,1.4087,3861.1,3861.0,5.22435]
[1753655851529,1.2206,3861.1,3861.0,5.22435]
[1753655851825,0.018,3861.3,3861.2,0.51782]
[1753655852030,0.018,3861.3,3861.2,2.01652]
[1753655852526,1.2386,3861.3,3861.2,2.01652]
[1753655853928,1.4267,3861.3,3861.2,2.01652]
[1753655854231,1.719,3861.3,3861.2,2.01652]
[1753655855132,1.4267,3861.3,3861.2,2.01652]
[1753655855634,1.719,3861.3,3861.2,1.72472]
[1753655856233,1.4267,3861.3,3861.2,2.01652]
[1753655856527,1.719,3861.3,3861.2,0.51782]
[1753655856730,1.719,3861.3,3861.2,1.23142]
[1753655856925,1.719,3861.3,3861.2,2.01652]
[1753655857730,1.719,3861.3,3861.2,1.72472]
[1753655858131,1.719,3861.3,3861.2,2.01652]
[1753655858432,1.719,3861.3,3861.2,2.65233093]
[1753655858733,0.018,3861.3,3861.2,2.65233093]
[1753655860833,0.9788,3861.9,3861.8,2.01644]
[1753655861036,0.9788,3861.9,3861.8,5.86005093]
[1753655861234,1.4206,3861.9,3861.8,5.86005093]
[1753655862230,0.2,3861.9,3861.8,5.86005093]
[1753655864329,0.5035,3861.9,3861.8,5.86005093]
[1753655865132,1.901,3861.9,3861.8,4.42884]
[1753655865337,1.901,3861.9,3861.8,24.91864]
[1753655865535,1.4206,3861.9,3861.8,26.11524]
[1753655865839,0.2,3861.9,3861.8,26.11524]
[1753655867733,0.9669,3862.5,3862.4,1.52456]
[1753655867928,1.4087,3862.5,3862.4,26.74897093]
[1753655868534,1.4087,3862.5,3862.4,5.85997093]
[1753655868734,1.701,3862.5,3862.4,26.45717093]
[1753655869434,0.4418,3862.8,3862.5,0.51765]
[1753655869633,1.1052,3862.8,3862.7,1.85823093]
[1753655869832,1.1052,3862.8,3862.7,2.89523093]
[1753655870033,1.3975,3862.8,3862.7,2.89523093]
[1753655870228,1.1052,3862.8,3862.7,2.89523093]
[1753655870836,1.3975,3862.8,3862.7,2.89523093]
[1753655871029,1.3975,3862.8,3862.7,23.78223093]
[1753655871436,1.1052,3862.8,3862.7,23.78223093]
[1753655871837,1.701,3863.7,3863.6,1.5229]
[1753655872142,1.1052,3863.7,3863.6,26.98991093]
[1753655872535,0.4753,3863.7,3863.6,26.98991093]
[1753655874639,0.9171,3863.7,3863.6,26.98991093]
[1753655875335,0.2872,3863.7,3863.6,26.98991093]
[1753655875539,0.36865803,3863.9,3863.8,2.25927]
[1753655876639,0.36865803,3863.9,3863.8,2.89508093]
[1753655876836,0.36865803,3863.9,3863.8,23.77808093]
[1753655877037,8.03e-06,3863.9,3863.8,23.77808093]
[1753655877237,8.03e-06,3863.9,3863.8,22.74108093]
[1753655877647,0.018,3864.3,3864.2,1.22222]
[1753655877943,0.018,3864.3,3864.2,26.98203093]
[1753655878443,0.018,3864.3,3864.2,6.09903093]
[1753655878743,1.7581,3864.3,3864.2,26.35422]
[1753655879044,1.1539,3864.3,3864.2,5.46322]
[1753655879354,0.018,3864.3,3864.2,26.99303093]
[1753655879543,1.1539,3864.3,3864.2,26.99203093]
[1753655879747,1.7581,3864.3,3864.2,6.09903093]
[1753655879939,1.7581,3864.3,3864.2,26.99203093]
[1753655880443,1.7581,3864.3,3864.2,26.99103093]
[1753655881640,1.7581,3864.3,3864.2,6.09903093]
[1753655881842,1.7581,3864.3,3864.2,26.99203093]
[1753655882351,1.7581,3864.3,3864.2,26.98603093]
[1753655882850,1.7581,3864.3,3864.2,26.55543093]
[1753655883044,0.2,3865.9,3864.9,1.20742]
[1753655883045,1.1586,3865.0,3864.9,1.20742]
[1753655883252,1.1586,3865.0,3864.5,1.29345]
[1753655883253,0.6815,3864.6,3864.5,3.3959]
[1753655883443,1.7401,3864.6,3864.5,21.39738]
[1753655883642,1.7401,3864.6,3864.5,23.10638]
[1753655883952,1.8401,3865.0,3864.9,2.22632]
[1753655884253,1.8401,3865.0,3864.9,0.51732]
[1753655885845,1.8401,3865.0,3864.4,1.29348]
[1753655885846,1.7401,3864.4,3864.3,4.4153]
[1753655886051,1.7401,3864.4,3864.3,26.36201093]
[1753655886253,1.7401,3864.4,3864.3,27.07401093]
[1753655887654,1.7401,3864.4,3864.3,26.36201093]
[1753655888345,1.7401,3864.4,3864.3,24.7162]
[1753655888745,1.7401,3864.4,3864.2,20.991]
[1753655888746,0.6815,3864.4,3864.2,20.991]
[1753655888953,1.1359,3864.0,3863.9,24.1988]
[1753655889248,1.1359,3864.0,3863.7,1.9003]
[1753655889249,0.51747,3863.9,3863.0,2.32714]
[1753655889450,0.6815,3863.4,3862.9,3.2078]
[1753655889862,0.6815,3863.0,3862.9,3.2078]
[1753655890160,1.19908,3863.0,3862.7,0.51761]
[1753655890355,1.6461,3862.6,3862.5,3.72545]
[1753655890761,1.6461,3862.6,3862.5,4.03235]
[1753655891161,1.6461,3862.6,3862.5,3.72545]
[1753655891561,0.63581093,3863.4,3862.6,0.51763]
[1753655891857,0.268,3862.7,3862.6,0.82453]
[1753655892062,0.268,3862.7,3862.6,1.80003]
[1753655892262,0.268,3862.7,3862.6,2.22663]
[1753655893863,0.4355,3862.7,3862.6,2.22663]
[1753655895561,3.00729093,3863.7,3862.6,1.709]
[1753655895763,0.4355,3863.5,3863.4,0.82442]
[1753655896161,0.4355,3863.5,3863.4,1.12412]
[1753655896368,0.4355,3863.5,3863.4,2.86233093]
[1753655897266,0.1675,3864.0,3863.6,1.1239]
[1753655897468,0.4355,3863.7,3863.6,2.2265]
[1753655897972,0.4355,3863.7,3863.6,1.7999]
[1753655898470,3.6433,3864.2,3864.1,0.51743]
[1753655898670,3.6433,3864.2,3864.1,1.79983]
[1753655898967,4.38147702,3864.2,3864.1,0.82433]
[1753655899171,1.17367702,3864.2,3864.1,0.82433]
[1753655899672,0.4355,3864.2,3864.1,1.12403]
[1753655899872,0.4355,3864.2,3864.1,1.32633]
[1753655901075,0.4355,3864.2,3864.1,1.51443]
[1753655901277,0.4355,3864.2,3864.1,1.79983]
[1753655901471,3.6433,3864.6,3864.5,0.99088]
[1753655901671,4.38248363,3864.6,3864.5,2.22638]
[1753655901971,1.17468363,3864.6,3864.5,2.22638]
[1753655902674,0.4355,3864.6,3864.5,2.22638]
[1753655903574,0.95286,3864.6,3864.5,0.3069]
[1753655903968,0.95286,3864.6,3864.5,0.82428]
[1753655904469,0.95286,3864.6,3864.5,0.5092]
[1753655904470,0.95406,3864.6,3864.5,0.5092]
[1753655904671,0.95493,3864.1,3864.0,0.3069]
[1753655904975,0.95493,3864.1,3864.0,0.82434]
[1753655905177,0.78658,3864.5,3864.4,0.71968]
[1753655905472,0.78658,3864.5,3864.4,1.20749]
[1753655905674,0.4375,3864.5,3864.4,1.79979]
[1753655905865,0.4375,3864.5,3864.4,2.22639]
[1753655906272,1.05482,3865.0,3864.9,1.12392]
[1753655906570,1.79409619,3865.0,3864.9,0.3069]
[1753655907466,0.78656,3864.6,3864.5,0.6066]
[1753655907670,0.95486,3864.6,3864.5,0.3069]
[1753655909274,0.51747,3863.9,3863.8,0.9877]
[1753655909474,0.95277,3863.9,3863.8,0.9877]
[1753655909869,0.95277,3863.9,3863.8,1.2735]
[1753655910179,0.95277,3863.9,3863.8,1.7257]
[1753655910980,0.95277,3863.9,3863.8,2.24315]
[1753655911678,0.4353,3863.9,3863.8,2.24315]
[1753655911882,0.4353,3864.3,3864.2,2.2431]
[1753655912177,0.4353,3864.8,3864.7,0.3925]
[1753655912370,1.69165953,3864.8,3864.7,1.2735]
[1753655912573,1.69165953,3864.8,3864.7,0.2858]
[1753655912779,1.69165953,3864.8,3864.7,1.2735]
[1753655912980,1.69165953,3864.8,3864.7,2.24305]
[1753655913383,0.95264,3864.8,3864.7,2.24305]
[1753655915883,0.95269,3864.4,3864.3,0.2858]
[1753655917479,4.16049,3864.4,3864.3,0.2858]
[1753655917875,1.29332,3864.9,3864.3,0.2858]
[1753655917876,3.3752,3864.9,3864.5,1.29345]
[1753655918083,0.1,3865.0,3864.9,2.24302]
[1753655918282,1.05262,3865.0,3864.9,2.24302]
[1753655918688,0.1,3865.0,3864.9,2.24302]
[1753655922386,0.1,3865.0,3864.9,1.7257]
[1753655922587,0.1,3865.0,3864.9,2.24302]
[1753655922782,0.88459,3865.9,3865.8,1.7257]
[1753655922986,1.15249,3865.9,3865.8,1.7257]
[1753655923390,1.1695625,3865.9,3865.8,2.2429]
[1753655923894,0.9016625,3865.9,3865.8,2.2429]
[1753655924296,1.1695625,3865.9,3865.8,1.7257]
[1753655925391,0.3844725,3865.9,3865.8,2.2429]
[1753655925593,0.2170725,3865.9,3865.8,2.2429]
[1753655925994,0.3844725,3865.9,3865.8,2.2429]
[1753655926195,1.1695625,3865.9,3865.8,1.7257]
[1753655926693,1.1695625,3865.9,3865.8,2.2429]
[1753655927287,1.1695625,3865.9,3865.8,0.2858]
[1753655928299,1.1695625,3865.9,3865.8,0.9852]
[1753655928497,1.1695625,3865.9,3865.8,1.2735]
[1753655929995,1.1695625,3865.9,3865.8,0.2858]
[1753655931391,1.1695625,3865.9,3865.8,0.5927]
[1753655931601,1.1695625,3865.9,3865.8,0.2858]
[1753655932395,1.1695625,3865.9,3865.8,1.7257]
[1753655932698,1.1695625,3865.9,3865.8,2.2429]
[1753655933097,1.1695625,3865.9,3865.8,1.7257]
[1753655933592,0.7342625,3865.9,3865.8,1.7257]
[1753655933798,0.7342625,3865.9,3865.8,2.2429]
[1753655935096,0.2170725,3865.9,3865.8,2.2429]
[1753655937000,0.7342625,3865.9,3865.8,2.2429]
[1753655937696,0.2170725,3865.9,3865.8,2.2429]
[1753655938196,0.7342625,3865.9,3865.8,2.2429]
[1753655938593,0.2170725,3865.9,3865.8,2.2429]
[1753655942798,0.2170725,3865.9,3865.8,2.87695013]
[1753655945501,0.6513725,3865.9,3865.8,2.2429]
[1753655945706,1.1685625,3865.9,3865.8,0.3024]
[1753655946096,1.1685625,3865.9,3865.8,0.7938]
[1753655946307,1.1685625,3865.9,3865.8,2.2379]
[1753655947102,1.1685625,3865.9,3865.8,1.817]
[1753655947310,0.6513725,3865.9,3865.8,2.2379]
[1753655948308,1.1685625,3865.9,3865.8,1.817]
[1753655948807,0.6513725,3865.9,3865.8,1.817]
[1753655949202,0.6513725,3865.9,3865.8,2.2379]
[1753655950003,0.2170725,3865.9,3865.8,2.2379]
[1753655950505,1.1685625,3865.9,3865.8,0.3024]
[1753655951905,1.1685625,3865.9,3865.8,0.8196]
[1753655952105,1.1685625,3865.9,3865.8,0.3024]
[1753655954010,0.6513725,3865.9,3865.8,2.2379]
[1753655954206,1.1685625,3865.9,3865.8,2.2379]
[1753655959005,1.1685625,3865.9,3865.8,1.7207]
[1753655962710,1.1685625,3865.9,3865.8,2.2379]
[1753655963104,1.1685625,3865.9,3865.8,1.7207]
[1753655963305,0.7342625,3865.9,3865.8,2.87195013]
[1753655963514,0.2170725,3865.9,3865.8,2.87195013]
[1753655964217,0.6841,3866.6,3866.5,1.7207]
[1753655964412,1.8936822,3866.6,3866.5,1.7207]
[1753655964917,1.6263822,3866.6,3866.5,2.23781]
[1753655965117,1.6263822,3866.6,3866.5,1.7207]
[1753655965118,1.8936822,3866.6,3866.5,1.7207]
[1753655965709,1.1404,3866.6,3866.5,1.7207]
[1753655966216,1.1404,3866.6,3866.5,2.23781]
[1753655966812,1.1404,3866.6,3866.5,1.7207]
[1753655968014,0.8731,3866.6,3866.5,2.23781]
[1753655968207,0.5171,3866.6,3866.5,2.23781]
[1753655968413,0.51706,3867.0,3866.9,1.20534]
[1753655968610,0.51706,3867.0,3866.9,2.23254]
[1753655968814,1.26969048,3867.0,3866.9,2.23254]
[1753655969215,1.46249048,3867.0,3866.9,1.7155]
[1753655969416,1.89529048,3867.0,3866.9,1.7155]
[1753655969818,1.14266,3867.0,3866.9,1.7155]
[1753655970217,1.14266,3867.0,3866.9,2.23256]
[1753655970519,0.51706,3867.0,3866.9,2.23256]
[1753655971117,0.97804,3867.2,3867.1,1.20532]
[1753655971318,1.89785975,3867.2,3867.1,1.7155]
[1753655971720,1.14564,3867.2,3867.1,2.23253]
[1753655971916,1.14564,3867.2,3867.1,1.7155]
[1753655972219,0.018,3867.3,3867.2,2.23252]
[1753655972420,0.7026,3867.3,3867.2,1.7155]
[1753655972719,1.1636,3867.3,3867.2,1.7155]
[1753655973219,0.51702,3867.2,3867.1,0.51703]
[1753655973415,1.14567,3866.9,3866.8,1.2804]
[1753655973722,1.14567,3866.9,3866.8,1.7155]
[1753655974016,0.70987,3866.9,3866.8,2.23257]
[1753655974421,0.87747,3866.9,3866.8,2.23257]
[1753655974620,1.14567,3866.9,3866.8,2.23257]
[1753655977216,0.51705,3867.1,3867.0,0.51703]
[1753655977420,1.14565,3867.1,3867.0,2.23253]
[1753655978015,1.14565,3867.1,3867.0,1.7155]
[1753655978421,1.14565,3867.1,3867.0,2.23254]
[1753655978719,0.87745,3867.1,3867.0,2.23254]
[1753655978925,0.51705,3867.1,3867.0,2.23254]
[1753655979323,0.51703,3867.2,3867.1,2.23252]
[1753655981028,0.68463,3867.2,3867.1,2.23252]
[1753655981223,1.14563,3867.2,3867.1,2.23252]
[1753655982223,1.27033,3867.2,3867.1,0.5921]
[1753655983930,1.27033,3867.2,3867.1,0.7918]
[1753655984130,1.14563,3867.2,3867.1,2.23253]
[1753655984426,1.14563,3867.2,3867.1,1.7155]
[1753655985533,0.87743,3867.2,3867.1,1.7155]
[1753655985729,0.02481194,3867.3,3867.2,0.51702]
[1753655985929,0.54181194,3867.3,3867.2,2.23252]
[1753655986133,1.17041194,3867.3,3867.2,2.23252]
[1753655987032,0.90221194,3867.3,3867.2,2.23252]
[1753655987333,0.02481194,3867.3,3867.2,2.23252]
[1753655991438,0.54181194,3867.3,3867.2,2.23252]
[1753655991639,0.02481194,3867.3,3867.2,2.23252]
[1753655995038,0.54181194,3867.3,3867.2,2.23252]
[1753655995339,1.17041194,3867.3,3867.2,2.23252]
[1753655997737,0.02481194,3867.3,3867.2,2.86657013]
[1753655998351,0.54181194,3867.3,3867.2,2.86657013]
[1753655998536,0.02481194,3867.3,3867.2,2.86657013]
[1753655999444,0.54181194,3867.3,3867.2,2.86657013]
[1753655999932,1.17321194,3867.3,3867.2,2.86657013]
[1753656000132,1.29731194,3867.3,3867.2,0.7918]
[1753656000337,1.27254,3867.0,3866.9,0.6952]
[1753656000538,1.27254,3867.0,3866.7,3.2078]
[1753656000539,1.14843,3867.2,3867.1,1.92642]
[1753656000842,0.54182194,3867.3,3867.2,2.20772]
[1753656001348,1.17322194,3867.3,3867.2,1.6907]
[1753656001847,1.17322194,3867.3,3867.0,0.5851]
[1753656001848,3.23261194,3867.3,3867.0,0.5851]
[1753656002148,1.27253,3867.1,3867.0,0.5851]
[1753656002338,1.14843,3867.1,3867.0,1.6907]
[1753656002538,0.54182194,3867.3,3867.2,1.206]
[1753656002740,0.54182194,3867.3,3867.2,1.6907]
[1753656002937,0.54182194,3867.3,3867.2,2.20772]
[1753656003150,0.70852194,3867.3,3867.2,2.20772]
[1753656004240,0.90652194,3867.3,3867.2,1.6907]
[1753656004539,1.17322194,3867.3,3867.2,1.6907]
[1753656004738,1.92395276,3867.3,3867.2,1.6907]
[1753656005740,2.04805276,3867.3,3867.2,1.2688]
[1753656006142,1.92395276,3867.3,3867.2,1.6907]
[1753656007449,1.92395276,3867.3,3867.2,1.2688]
[1753656007747,1.27254,3867.0,3866.9,0.5851]
[1753656008346,1.14851,3866.5,3866.4,1.2688]
[1753656008648,1.27261,3866.5,3866.4,0.9765]
[1753656009643,1.14851,3866.5,3866.4,1.2688]
[1753656009849,1.14851,3866.5,3866.4,1.6907]
[1753656010643,0.1667,3866.1,3865.9,0.2813]
[1753656010851,1.14856,3866.1,3866.0,1.6907]
[1753656011750,0.1667,3866.5,3866.0,0.6837]
[1753656012051,0.68381,3866.5,3866.4,2.20782]
[1753656012351,0.88181,3866.5,3866.4,2.20782]
[1753656013449,3.6725,3867.1,3867.0,0.3914]
[1753656013651,4.93942539,3867.1,3867.0,1.6907]
[1753656014147,5.10612539,3867.1,3867.0,1.6907]
[1753656014354,4.35623,3867.1,3867.0,1.6907]
[1753656020450,1.14843,3867.1,3867.0,1.6907]
[1753656020753,1.14843,3867.1,3867.0,2.20774]
[1753656021351,1.14843,3867.1,3867.0,1.6907]
[1753656021956,1.14843,3867.1,3867.0,2.20774]
[1753656022152,0.51702,3867.2,3867.1,1.92642]
[1753656022449,0.54182194,3867.3,3867.2,2.20772]
[1753656025351,0.02481194,3867.3,3867.2,2.20772]
[1753656028560,0.54181194,3867.3,3867.2,1.6907]
[1753656028755,0.90061194,3867.3,3867.2,1.6907]
[1753656029156,1.29121194,3867.3,3867.2,1.2688]
[1753656029461,1.29121194,3867.3,3867.2,0.7841]
[1753656030764,1.29121194,3867.3,3867.2,0.9802]
[1753656030964,0.97584,3867.0,3866.9,1.0314]
[1753656031164,1.14244,3867.0,3866.9,0.587]
[1753656031363,1.26644,3867.0,3866.9,0.587]
[1753656032354,1.14244,3867.0,3866.9,1.7275]
[1753656033459,1.26644,3867.0,3866.9,1.2831]
[1753656033659,1.26644,3867.0,3866.9,0.3071]
[1753656034063,1.26644,3867.0,3866.9,0.587]
[1753656037969,1.26644,3867.0,3866.9,0.3071]
[1753656038265,1.26777,3866.8,3866.7,0.587]
[1753656040367,0.7507,3866.5,3866.2,0.2799]
[1753656040669,1.26784,3866.3,3866.2,0.2799]
[1753656040868,1.26784,3866.3,3866.2,0.587]
[1753656041068,1.26784,3866.3,3866.2,0.7831]
[1753656041268,1.26784,3866.3,3866.2,0.974]
[1753656041471,1.14354,3866.3,3866.2,1.7275]
[1753656043564,0.70934,3866.3,3866.2,1.7275]
[1753656043871,0.51714,3866.3,3866.2,1.7275]
[1753656044072,0.51714,3866.3,3866.2,2.24465]
[1753656045370,3.2078,3866.4,3866.3,2.24464]
[1753656045571,3.72492,3866.4,3866.3,2.87869013]
[1753656046473,0.51712,3866.4,3866.3,2.87869013]
[1753656048065,0.51712,3866.4,3866.3,2.24464]
[1753656048766,0.68412,3866.4,3866.3,2.24464]
[1753656050271,0.51712,3866.4,3866.3,2.24464]
[1753656050566,0.68412,3866.6,3866.5,1.2132]
[1753656050768,0.68412,3866.6,3866.5,2.2446]
[1753656051967,0.51712,3866.6,3866.5,2.2446]
[1753656052474,0.52324198,3866.6,3866.5,2.2446]
[1753656053069,1.14964198,3866.6,3866.5,1.7275]
[1753656054773,1.14964198,3866.6,3866.5,2.24461]
[1753656054966,1.14964198,3866.6,3866.5,1.7275]
[1753656055168,0.52324198,3866.6,3866.5,1.7275]
[1753656055966,0.52324198,3866.6,3866.5,2.24461]
[1753656056172,0.52324198,3866.6,3866.5,1.7275]
[1753656056372,0.69024198,3866.6,3866.5,1.7275]
[1753656057172,0.69024198,3866.6,3866.5,2.24461]
[1753656058573,0.69024198,3866.6,3866.5,1.7275]
[1753656058774,0.69024198,3866.6,3866.5,2.24461]
[1753656059977,0.52324198,3866.6,3866.5,2.24461]
[1753656060272,0.69124198,3866.6,3866.5,1.7275]
[1753656060477,0.88344198,3866.6,3866.5,1.7275]
[1753656060975,1.15234198,3866.6,3866.5,1.7275]
[1753656061479,1.15234198,3866.6,3866.5,1.2831]
[1753656061778,1.27014,3866.3,3866.2,0.5938]
[1753656061980,22.16114,3866.3,3866.2,0.5938]
[1753656064774,22.03614,3866.3,3866.2,1.2879]
[1753656065078,22.03614,3866.3,3866.2,1.7495]
[1753656069782,0.9772,3865.8,3865.7,4.1978]
[1753656070083,1.1452,3865.8,3865.7,1.4516]
[1753656070484,1.1452,3865.8,3865.7,1.7495]
[1753656071582,0.51726,3865.4,3865.3,1.4516]
[1753656071883,0.97734,3864.8,3864.7,0.6551]
[1753656072081,22.03334,3864.8,3864.7,0.6551]
[1753656072386,22.03334,3864.8,3864.7,1.4423]
[1753656072585,22.03334,3864.8,3864.7,1.7495]
[1753656073087,22.15834,3864.8,3864.7,0.9807]
[1753656073286,1.27038,3864.5,3864.4,0.2959]
[1753656073491,25.36518,3864.5,3864.4,0.2979]
[1753656073996,1.27042,3864.2,3864.1,0.5938]
[1753656074195,22.16042,3864.2,3864.1,0.5938]
[1753656074399,1.14546,3863.9,3863.8,0.97871882]
[1753656074601,22.16046,3863.9,3863.8,0.19151882]
[1753656075000,22.16046,3863.9,3863.8,0.48941882]
[1753656075201,22.16046,3863.9,3863.8,0.78531882]
[1753656075397,0.51758,3863.0,3862.9,0.1934]
[1753656075597,0.4824,3863.0,3862.9,0.6941]
[1753656075797,3.91642,3863.4,3863.3,0.6941]
[1753656075997,24.80542,3863.4,3863.3,1.4516]
[1753656076406,0.70862,3863.4,3863.3,1.4516]
[1753656076601,20.889,3863.4,3863.3,2.60319013]
[1753656077210,3.2078,3864.3,3864.2,1.4516]
[1753656077397,24.8093,3864.3,3864.2,1.7495]
[1753656077594,0.51744,3864.0,3863.9,0.953]
[1753656077801,21.89284,3864.0,3863.9,1.0945]
[1753656078099,0.99984,3864.0,3863.9,0.2959]
[1753656078300,0.99988,3863.7,3863.6,1.7495]
[1753656078501,21.89288,3863.7,3863.6,1.2879]
[1753656078698,21.89288,3863.7,3863.3,0.4616]
[1753656078699,0.70862,3863.4,3863.3,1.7495]
[1753656079005,21.60162,3863.4,3863.3,1.7495]
[1753656079606,20.893,3863.4,3863.3,2.26704]
[1753656080300,0.5175,3863.4,3863.3,1.7495]
[1753656080501,0.5175,3863.4,3863.3,2.26701]
[1753656080697,0.5175,3863.4,3863.3,1.7495]
[1753656080901,0.7086,3863.4,3863.3,1.7495]
[1753656081109,0.9999,3863.4,3863.3,1.7495]
[1753656082011,0.5175,3863.4,3863.3,1.7495]
[1753656082211,0.7086,3863.4,3863.3,1.7495]
[1753656082502,0.9999,3863.4,3863.3,1.2879]
[1753656082707,0.9999,3863.4,3863.3,1.7495]
[1753656082902,0.99994,3863.1,3863.0,0.4914]
[1753656083114,21.89694,3863.1,3863.0,1.2879]
[1753656083297,21.89694,3863.1,3863.0,1.7495]
[1753656085109,0.70854,3863.8,3863.7,1.7495]
[1753656085302,21.60554,3863.8,3863.7,1.7495]
[1753656085501,21.41444,3863.8,3863.7,1.7495]
[1753656086210,0.70861,3863.3,3863.2,1.1557]
[1753656086398,0.51751,3863.3,3863.2,1.78975013]
[1753656086604,21.51251,3863.3,3863.2,1.92195013]
[1753656087107,0.70852,3864.0,3863.9,0.6941]
[1753656087309,21.70352,3864.0,3863.9,0.6941]
[1753656087806,0.51742,3864.0,3863.9,1.7495]
[1753656088007,21.51642,3864.0,3863.9,1.7495]
[1753656088207,0.51739,3864.2,3864.1,0.3014]
[1753656088406,0.51739,3864.2,3864.1,1.7284]
[1753656088606,0.51739,3864.2,3864.1,2.2458]
[1753656088910,0.99189,3864.2,3864.1,1.2834]
[1753656089313,0.51738,3864.3,3864.2,1.21599]
[1753656089611,21.51938,3864.3,3864.2,1.7284]
[1753656090807,21.51938,3864.3,3864.2,2.24579]
[1753656091008,21.51938,3864.3,3864.2,1.7284]
[1753656091703,21.51938,3864.3,3864.2,2.24579]
[1753656092413,24.72115,3864.6,3864.5,1.7284]